[Event "Early-Titled-Tuesday-Blitz-September-12-2023"]
[Site "Chess.com"]
[Date "2023.09.12"]
[Round "4"]
[White "TomLiu777"]
[Black "Ariadna_Atreides"]
[Result "1-0"]
[WhiteElo "2413"]
[BlackElo "2211"]
[TimeControl "180+1"]
[EndTime "8:37:58 PDT"]
[Termination "TomLiu777 won on time"]

1. c4 {[%clk 0:03:00.9]} 1... e5 {[%clk 0:02:56.3]} 2. Nc3 {[%clk 0:02:57.1]}
2... Bb4 {[%clk 0:02:52.7]} 3. Nd5 {[%clk 0:02:55.2]} 3... Be7 {[%clk
0:02:52.1]} 4. Nf3 {[%clk 0:02:51.3]} 4... d6 {[%clk 0:02:48.5]} 5. d4 {[%clk
0:02:47.9]} 5... f6 {[%clk 0:02:46.3]} 6. dxe5 {[%clk 0:02:43]} 6... fxe5 {[%clk
0:02:34.1]} 7. e4 {[%clk 0:02:40.2]} 7... Nf6 {[%clk 0:02:32.3]} 8. Bd3 {[%clk
0:02:34.1]} 8... Bg4 {[%clk 0:02:24.9]} 9. O-O {[%clk 0:02:24.2]} 9... Nxd5
{[%clk 0:02:11.8]} 10. exd5 {[%clk 0:02:15.2]} 10... O-O {[%clk 0:02:11.1]} 11.
Qc2 {[%clk 0:02:07.4]} 11... Bxf3 {[%clk 0:01:41.2]} 12. Bxh7+ {[%clk
0:02:02.2]} 12... Kh8 {[%clk 0:01:40.5]} 13. gxf3 {[%clk 0:02:03.1]} 13... Nd7
{[%clk 0:01:20.1]} 14. Be3 {[%clk 0:01:55]} 14... Rxf3 {[%clk 0:01:03]} 15. Be4
{[%clk 0:01:52.1]} 15... Rh3 {[%clk 0:00:56.7]} 16. Bg2 {[%clk 0:01:48.4]} 16...
Rh4 {[%clk 0:00:53.4]} 17. f4 {[%clk 0:01:44.5]} 17... Qe8 {[%clk 0:00:46.4]}
18. Rae1 {[%clk 0:01:39.1]} 18... Qh5 {[%clk 0:00:43]} 19. h3 {[%clk 0:01:32.9]}
19... Rf8 {[%clk 0:00:37.5]} 20. fxe5 {[%clk 0:01:27.8]} 20... Rxf1+ {[%clk
0:00:35]} 21. Rxf1 {[%clk 0:01:17.2]} 21... Qxe5 {[%clk 0:00:24.3]} 22. Qf2
{[%clk 0:01:13.9]} 22... Bf6 {[%clk 0:00:18.5]} 23. Bf4 {[%clk 0:01:05]} 23...
Qxb2 {[%clk 0:00:13]} 24. Qe1 {[%clk 0:01:01.2]} 24... Qd4+ {[%clk 0:00:11.7]}
25. Kh1 {[%clk 0:00:56.3]} 25... Ne5 {[%clk 0:00:06.9]} 26. Bxe5 {[%clk
0:00:52.1]} 26... Qxe5 {[%clk 0:00:05.9]} 27. Qf2 {[%clk 0:00:48.8]} 27... Rh6
{[%clk 0:00:04.2]} 28. Qxa7 {[%clk 0:00:40.4]} 28... Qg3 {[%clk 0:00:02.4]} 29.
Qb8+ {[%clk 0:00:31.3]} 29... Kh7 {[%clk 0:00:02.5]} 30. Qc8 {[%clk 0:00:29.9]}
30... Rxh3+ {[%clk 0:00:01.4]} 31. Qxh3+ {[%clk 0:00:25.7]} 31... Qxh3+ {[%clk
0:00:02.3]} 32. Bxh3 {[%clk 0:00:26.3]} 1-0

[Event "Early-Titled-Tuesday-Blitz-September-12-2023"]
[Site "Chess.com"]
[Date "2023.09.12"]
[Round "4"]
[White "Boundless_Strike"]
[Black "taleslascando"]
[Result "1-0"]
[WhiteElo "2625"]
[BlackElo "1942"]
[TimeControl "180+1"]
[EndTime "8:37:59 PDT"]
[Termination "Boundless_Strike won by resignation"]

1. d3 {[%clk 0:03:00.9]} 1... Nf6 {[%clk 0:02:59.3]} 2. e4 {[%clk 0:02:43.2]}
2... e5 {[%clk 0:02:59.1]} 3. a3 {[%clk 0:02:40.2]} 3... Nc6 {[%clk 0:02:58.1]}
4. h3 {[%clk 0:02:39.9]} 4... d5 {[%clk 0:02:58.3]} 5. Bg5 {[%clk 0:02:39.2]}
5... dxe4 {[%clk 0:02:57.4]} 6. Nc3 {[%clk 0:02:39.7]} 6... exd3 {[%clk
0:02:49.3]} 7. Bxd3 {[%clk 0:02:40.6]} 7... h6 {[%clk 0:02:47.6]} 8. Bh4 {[%clk
0:02:39.8]} 8... Be7 {[%clk 0:02:47.4]} 9. Qe2 {[%clk 0:02:38.4]} 9... O-O
{[%clk 0:02:41.2]} 10. O-O-O {[%clk 0:02:38.1]} 10... Nd5 {[%clk 0:02:01.4]} 11.
Nxd5 {[%clk 0:01:13.1]} 11... Bxh4 {[%clk 0:02:00.4]} 12. Nf3 {[%clk 0:01:13.7]}
12... Be6 {[%clk 0:01:39.3]} 13. Qe4 {[%clk 0:00:56.9]} 13... Bg5+ {[%clk
0:01:22.6]} 14. Nxg5 {[%clk 0:00:54.4]} 14... Qxg5+ {[%clk 0:01:22.5]} 15. f4
{[%clk 0:00:54.4]} 15... f5 {[%clk 0:01:19.5]} 16. fxg5 {[%clk 0:00:43]} 16...
fxe4 {[%clk 0:01:19.7]} 17. Bxe4 {[%clk 0:00:43.5]} 17... Rac8 {[%clk
0:01:04.5]} 18. gxh6 {[%clk 0:00:41.5]} 18... gxh6 {[%clk 0:01:04.5]} 19. c3
{[%clk 0:00:37.1]} 19... Kg7 {[%clk 0:01:04.3]} 20. Rhe1 {[%clk 0:00:35.6]}
20... Rf2 {[%clk 0:00:59.2]} 21. Bf3 {[%clk 0:00:32.2]} 21... Bf5 {[%clk
0:00:41.1]} 22. Ne3 {[%clk 0:00:22.5]} 22... Bg6 {[%clk 0:00:31.6]} 23. Rd7+
{[%clk 0:00:21.8]} 23... Kf8 {[%clk 0:00:20.4]} 24. Bxc6 {[%clk 0:00:17.1]}
24... bxc6 {[%clk 0:00:19.6]} 25. Rd2 {[%clk 0:00:17.8]} 25... Rxd2 {[%clk
0:00:18.2]} 26. Kxd2 {[%clk 0:00:18.7]} 26... Rd8+ {[%clk 0:00:17.9]} 27. Kc1
{[%clk 0:00:19.5]} 27... Ke7 {[%clk 0:00:16.3]} 28. Ng4 {[%clk 0:00:19.4]} 28...
e4 {[%clk 0:00:14.9]} 29. Ne5 {[%clk 0:00:19.9]} 29... Bf5 {[%clk 0:00:11.2]}
30. Nxc6+ {[%clk 0:00:18.6]} 30... Kd7 {[%clk 0:00:10.8]} 31. Nxd8 {[%clk
0:00:17.7]} 31... Kxd8 {[%clk 0:00:11.7]} 32. g4 {[%clk 0:00:18.4]} 1-0

[Event "Early-Titled-Tuesday-Blitz-September-12-2023"]
[Site "Chess.com"]
[Date "2023.09.12"]
[Round "4"]
[White "kingofthenil"]
[Black "Tsyhanchuk_Stanislav"]
[Result "1-0"]
[WhiteElo "2744"]
[BlackElo "2427"]
[TimeControl "180+1"]
[EndTime "8:38:00 PDT"]
[Termination "kingofthenil won by resignation"]

1. e4 {[%clk 0:02:54.5]} 1... c5 {[%clk 0:02:59.7]} 2. Nf3 {[%clk 0:02:51.4]}
2... d6 {[%clk 0:02:59.4]} 3. d4 {[%clk 0:02:50.3]} 3... cxd4 {[%clk 0:03:00.3]}
4. Nxd4 {[%clk 0:02:51]} 4... Nf6 {[%clk 0:02:59.9]} 5. Nc3 {[%clk 0:02:51.1]}
5... a6 {[%clk 0:03:00.4]} 6. g3 {[%clk 0:02:51.5]} 6... e5 {[%clk 0:02:59.8]}
7. Nde2 {[%clk 0:02:51.5]} 7... b5 {[%clk 0:02:57.6]} 8. a3 {[%clk 0:02:50.5]}
8... Be7 {[%clk 0:02:57.6]} 9. Bg2 {[%clk 0:02:50.3]} 9... O-O {[%clk
0:02:58.2]} 10. h3 {[%clk 0:02:49.2]} 10... Nbd7 {[%clk 0:02:50.7]} 11. O-O
{[%clk 0:02:48.6]} 11... Nb6 {[%clk 0:02:50.8]} 12. Bg5 {[%clk 0:02:48.6]} 12...
Bb7 {[%clk 0:02:46.2]} 13. Bxf6 {[%clk 0:02:48.2]} 13... Bxf6 {[%clk 0:02:45.2]}
14. Nc1 {[%clk 0:02:43.9]} 14... Qd7 {[%clk 0:02:41.2]} 15. Nd3 {[%clk
0:02:43.3]} 15... Rfd8 {[%clk 0:02:31.1]} 16. Nb4 {[%clk 0:02:41]} 16... Rac8
{[%clk 0:02:26.5]} 17. Rc1 {[%clk 0:02:40]} 17... Rc5 {[%clk 0:02:12.3]} 18. Nd3
{[%clk 0:02:29.4]} 18... Rc4 {[%clk 0:02:03.1]} 19. Nb4 {[%clk 0:02:27.8]} 19...
Rdc8 {[%clk 0:01:41.4]} 20. Ncd5 {[%clk 0:02:21.6]} 20... Nxd5 {[%clk
0:01:37.8]} 21. exd5 {[%clk 0:02:21.6]} 21... Bg5 {[%clk 0:01:34]} 22. Rb1
{[%clk 0:02:17.7]} 22... a5 {[%clk 0:01:31.5]} 23. Nc6 {[%clk 0:02:17.5]} 23...
Bxc6 {[%clk 0:01:11.5]} 24. dxc6 {[%clk 0:02:17.5]} 24... Qc7 {[%clk 0:01:10.4]}
25. c3 {[%clk 0:00:57.7]} 25... Rd8 {[%clk 0:01:01.7]} 26. Bd5 {[%clk
0:00:53.4]} 26... Rc5 {[%clk 0:00:50.5]} 27. Qd3 {[%clk 0:00:53.2]} 27... a4
{[%clk 0:00:35.7]} 28. h4 {[%clk 0:00:45.1]} 28... Bf6 {[%clk 0:00:24.7]} 29.
Rfe1 {[%clk 0:00:40.9]} 29... Qe7 {[%clk 0:00:19.5]} 30. b4 {[%clk 0:00:37]}
30... axb3 {[%clk 0:00:18.7]} 31. Rxb3 {[%clk 0:00:36.8]} 31... g6 {[%clk
0:00:15.1]} 32. Rxb5 {[%clk 0:00:32]} 32... h5 {[%clk 0:00:05.6]} 33. Rb7 {[%clk
0:00:31.2]} 33... Rxd5 {[%clk 0:00:01.1]} 34. Qxd5 {[%clk 0:00:32.1]} 34... Qe6
{[%clk 0:00:01.5]} 35. Qxe6 {[%clk 0:00:31.9]} 35... fxe6 {[%clk 0:00:02.4]} 36.
c7 {[%clk 0:00:32.8]} 1-0

[Event "Early-Titled-Tuesday-Blitz-September-12-2023"]
[Site "Chess.com"]
[Date "2023.09.12"]
[Round "4"]
[White "secretsuperstar7"]
[Black "ayanakhmetov"]
[Result "1-0"]
[WhiteElo "2410"]
[BlackElo "2557"]
[TimeControl "180+1"]
[EndTime "8:38:00 PDT"]
[Termination "secretsuperstar7 won by resignation"]

1. c4 {[%clk 0:03:00.9]} 1... b6 {[%clk 0:02:59.7]} 2. g3 {[%clk 0:02:57.4]}
2... Bb7 {[%clk 0:02:59.7]} 3. Nf3 {[%clk 0:02:57.7]} 3... c5 {[%clk 0:02:54.9]}
4. Bg2 {[%clk 0:02:57]} 4... g6 {[%clk 0:02:55.6]} 5. O-O {[%clk 0:02:53.5]}
5... Bg7 {[%clk 0:02:56.2]} 6. d4 {[%clk 0:02:53.6]} 6... cxd4 {[%clk
0:02:55.2]} 7. Nxd4 {[%clk 0:02:53.6]} 7... Bxg2 {[%clk 0:02:54.5]} 8. Kxg2
{[%clk 0:02:54.5]} 8... Qc8 {[%clk 0:02:55.4]} 9. Nc3 {[%clk 0:02:48.6]} 9...
Qxc4 {[%clk 0:02:54.4]} 10. Be3 {[%clk 0:02:47.8]} 10... Qc8 {[%clk 0:02:53.3]}
11. Rc1 {[%clk 0:02:44.4]} 11... Qb7+ {[%clk 0:02:53]} 12. Kg1 {[%clk 0:02:43]}
12... Nf6 {[%clk 0:02:53.9]} 13. Ncb5 {[%clk 0:02:28.7]} 13... Nc6 {[%clk
0:02:52.7]} 14. Qc2 {[%clk 0:01:58.1]} 14... Rc8 {[%clk 0:02:43.4]} 15. Qa4
{[%clk 0:01:52.7]} 15... a6 {[%clk 0:02:29.9]} 16. Nxc6 {[%clk 0:01:35.6]} 16...
dxc6 {[%clk 0:02:30.8]} 17. Nd4 {[%clk 0:01:26]} 17... b5 {[%clk 0:02:28.8]} 18.
Qc2 {[%clk 0:01:25.5]} 18... Nd5 {[%clk 0:02:22.3]} 19. Nxc6 {[%clk 0:01:14.5]}
19... Nxe3 {[%clk 0:02:16]} 20. fxe3 {[%clk 0:01:15.4]} 20... O-O {[%clk
0:02:16.4]} 21. Qe4 {[%clk 0:01:12.7]} 21... e6 {[%clk 0:02:13.4]} 22. Qf3
{[%clk 0:01:08.1]} 22... Bxb2 {[%clk 0:02:06.5]} 23. Rc2 {[%clk 0:01:06.3]}
23... Bg7 {[%clk 0:02:06.5]} 24. Rfc1 {[%clk 0:01:05.5]} 24... Rc7 {[%clk
0:02:03.4]} 25. Qf4 {[%clk 0:00:53.1]} 25... Qb6 {[%clk 0:01:40.3]} 26. Qd6
{[%clk 0:00:49.5]} 26... Qxe3+ {[%clk 0:01:35.6]} 27. Kf1 {[%clk 0:00:48.5]}
27... Rb7 {[%clk 0:01:20.6]} 28. Ne7+ {[%clk 0:00:44.1]} 28... Kh8 {[%clk
0:01:09.8]} 29. Rc8 {[%clk 0:00:43.6]} 29... Qh6 {[%clk 0:00:12.4]} 30. Rxf8+
{[%clk 0:00:25.8]} 30... Bxf8 {[%clk 0:00:13.3]} 31. Rc8 {[%clk 0:00:25.7]}
31... b4 {[%clk 0:00:07]} 32. Rxf8+ {[%clk 0:00:25.6]} 32... Kg7 {[%clk
0:00:06.7]} 33. Rg8+ {[%clk 0:00:24.2]} 1-0

[Event "Early-Titled-Tuesday-Blitz-September-12-2023"]
[Site "Chess.com"]
[Date "2023.09.12"]
[Round "4"]
[White "APOKALIPSA13"]
[Black "hongnhung1234"]
[Result "0-1"]
[WhiteElo "2244"]
[BlackElo "2492"]
[TimeControl "180+1"]
[EndTime "8:38:00 PDT"]
[Termination "hongnhung1234 won by resignation"]

1. e4 {[%clk 0:03:00.9]} 1... c5 {[%clk 0:02:59]} 2. Nf3 {[%clk 0:03:01.2]} 2...
e6 {[%clk 0:02:58.8]} 3. d4 {[%clk 0:03:01.6]} 3... cxd4 {[%clk 0:02:59.7]} 4.
Nxd4 {[%clk 0:03:02.2]} 4... Nf6 {[%clk 0:02:59.1]} 5. Nc3 {[%clk 0:03:02.4]}
5... Nc6 {[%clk 0:02:59]} 6. Be3 {[%clk 0:03:00.5]} 6... Bb4 {[%clk 0:02:57.5]}
7. Bd3 {[%clk 0:03:01.4]} 7... d5 {[%clk 0:02:56.2]} 8. exd5 {[%clk 0:03:00.8]}
8... Nxd5 {[%clk 0:02:55.9]} 9. O-O {[%clk 0:03:01.7]} 9... Nxc3 {[%clk
0:02:46.9]} 10. bxc3 {[%clk 0:03:02.6]} 10... Bxc3 {[%clk 0:02:47.3]} 11. Nxc6
{[%clk 0:03:00.9]} 11... bxc6 {[%clk 0:02:48]} 12. Rb1 {[%clk 0:02:59.6]} 12...
O-O {[%clk 0:02:43.7]} 13. Bc5 {[%clk 0:02:57.3]} 13... Re8 {[%clk 0:02:40.8]}
14. Be4 {[%clk 0:02:55.4]} 14... Qc7 {[%clk 0:02:10.5]} 15. Qh5 {[%clk
0:02:44.7]} 15... g6 {[%clk 0:02:08.8]} 16. Qf3 {[%clk 0:02:43.6]} 16... Be5
{[%clk 0:01:41.4]} 17. Bxc6 {[%clk 0:02:42.1]} 17... Ba6 {[%clk 0:01:39]} 18.
Rfe1 {[%clk 0:02:38.9]} 18... Rec8 {[%clk 0:01:27]} 19. Bxa8 {[%clk 0:02:25.8]}
19... Qxc5 {[%clk 0:01:26.2]} 20. Bb7 {[%clk 0:02:25.1]} 20... Bxb7 {[%clk
0:01:20.5]} 21. Rxb7 {[%clk 0:02:26]} 21... Rf8 {[%clk 0:01:15.9]} 22. Qe3
{[%clk 0:02:20]} 22... Bd4 {[%clk 0:01:13.4]} 23. Qf3 {[%clk 0:02:17.7]} 23...
Qxc2 {[%clk 0:01:11.4]} 24. h4 {[%clk 0:02:16.9]} 24... Qxa2 {[%clk 0:01:04.9]}
25. h5 {[%clk 0:02:14.5]} 25... Qa5 {[%clk 0:00:59]} 26. Rd1 {[%clk 0:02:07.8]}
26... Bg7 {[%clk 0:00:56.7]} 27. hxg6 {[%clk 0:01:59.8]} 27... hxg6 {[%clk
0:00:54]} 28. g3 {[%clk 0:01:57.9]} 28... a6 {[%clk 0:00:35.9]} 29. Rdd7 {[%clk
0:01:57.6]} 29... Qa1+ {[%clk 0:00:30.1]} 30. Kg2 {[%clk 0:01:53.7]} 30... Bf6
{[%clk 0:00:21.7]} 31. Ra7 {[%clk 0:01:39.6]} 31... a5 {[%clk 0:00:20.4]} 32. g4
{[%clk 0:01:36.5]} 32... Qe5 {[%clk 0:00:19.1]} 33. Qb7 {[%clk 0:01:30.7]} 33...
Qf4 {[%clk 0:00:16.2]} 34. f3 {[%clk 0:01:26.9]} 34... Be5 {[%clk 0:00:14.5]}
35. Rxa5 {[%clk 0:01:18.7]} 35... Qh2+ {[%clk 0:00:13.6]} 36. Kf1 {[%clk
0:01:18.3]} 36... Bg3 {[%clk 0:00:14]} 37. Qa7 {[%clk 0:00:54.4]} 37... Qh1+
{[%clk 0:00:12.1]} 38. Ke2 {[%clk 0:00:54.1]} 38... Qg2+ {[%clk 0:00:12.4]} 39.
Kd3 {[%clk 0:00:53.1]} 39... Qxf3+ {[%clk 0:00:12.9]} 40. Kc4 {[%clk 0:00:51.7]}
40... Rc8+ {[%clk 0:00:11.8]} 41. Kb5 {[%clk 0:00:48.7]} 41... Qb3+ {[%clk
0:00:10.8]} 42. Ka6 {[%clk 0:00:44.5]} 42... Rc6+ {[%clk 0:00:10.9]} 0-1

[Event "Early-Titled-Tuesday-Blitz-September-12-2023"]
[Site "Chess.com"]
[Date "2023.09.12"]
[Round "4"]
[White "vladgoncharov"]
[Black "Chaos_Magic"]
[Result "1-0"]
[WhiteElo "2547"]
[BlackElo "2369"]
[TimeControl "180+1"]
[EndTime "8:38:01 PDT"]
[Termination "vladgoncharov won on time"]

1. d4 {[%clk 0:02:56.4]} 1... Nf6 {[%clk 0:02:56.4]} 2. c4 {[%clk 0:02:56.1]}
2... e6 {[%clk 0:02:56.7]} 3. Nc3 {[%clk 0:02:54.3]} 3... d5 {[%clk 0:02:57]} 4.
Bg5 {[%clk 0:02:53.1]} 4... Be7 {[%clk 0:02:56.6]} 5. e3 {[%clk 0:02:53]} 5...
h6 {[%clk 0:02:56.3]} 6. Bh4 {[%clk 0:02:52.4]} 6... O-O {[%clk 0:02:56.6]} 7.
Rc1 {[%clk 0:02:51.9]} 7... c6 {[%clk 0:02:53.7]} 8. Nf3 {[%clk 0:02:49.8]} 8...
Ne4 {[%clk 0:02:53.7]} 9. Bxe7 {[%clk 0:02:47.1]} 9... Qxe7 {[%clk 0:02:52.4]}
10. Bd3 {[%clk 0:02:46.9]} 10... Nxc3 {[%clk 0:02:47]} 11. Rxc3 {[%clk
0:02:45.3]} 11... Nd7 {[%clk 0:02:45]} 12. cxd5 {[%clk 0:02:35.5]} 12... exd5
{[%clk 0:02:44.8]} 13. Qc2 {[%clk 0:02:34.2]} 13... Nf6 {[%clk 0:02:43.5]} 14.
h3 {[%clk 0:02:33.7]} 14... Ne8 {[%clk 0:02:15.3]} 15. O-O {[%clk 0:02:27.9]}
15... Nd6 {[%clk 0:02:15.4]} 16. Ne5 {[%clk 0:02:26.5]} 16... Qf6 {[%clk
0:02:12.7]} 17. b4 {[%clk 0:02:14.6]} 17... a6 {[%clk 0:02:12.1]} 18. a4 {[%clk
0:02:14]} 18... Bf5 {[%clk 0:01:30.9]} 19. Bxf5 {[%clk 0:02:13.5]} 19... Qxf5
{[%clk 0:01:30.8]} 20. Qxf5 {[%clk 0:02:12.7]} 20... Nxf5 {[%clk 0:01:31.1]} 21.
b5 {[%clk 0:02:13.2]} 21... axb5 {[%clk 0:01:31.2]} 22. axb5 {[%clk 0:02:13.2]}
22... cxb5 {[%clk 0:01:08.8]} 23. Rc5 {[%clk 0:02:11.8]} 23... f6 {[%clk
0:00:28.1]} 24. Ng6 {[%clk 0:02:00.9]} 24... Rfd8 {[%clk 0:00:27.1]} 25. Rxb5
{[%clk 0:02:00.5]} 25... Rd7 {[%clk 0:00:26.7]} 26. g4 {[%clk 0:01:52.6]} 26...
Ne7 {[%clk 0:00:21.8]} 27. Nxe7+ {[%clk 0:01:51.9]} 27... Rxe7 {[%clk
0:00:22.1]} 28. Rxd5 {[%clk 0:01:51.8]} 28... Ra2 {[%clk 0:00:21.8]} 29. Rb5
{[%clk 0:01:47.8]} 29... Kh7 {[%clk 0:00:19.8]} 30. Rb3 {[%clk 0:01:46.4]} 30...
Rc7 {[%clk 0:00:16.8]} 31. Kg2 {[%clk 0:01:45.9]} 31... h5 {[%clk 0:00:16.8]}
32. gxh5 {[%clk 0:01:40.4]} 32... Kh6 {[%clk 0:00:17.2]} 33. Rb5 {[%clk
0:01:40]} 33... Rc3 {[%clk 0:00:17.3]} 34. Kf3 {[%clk 0:01:39.8]} 34... Rc7
{[%clk 0:00:16.8]} 35. Rg1 {[%clk 0:01:39.2]} 35... Rcc2 {[%clk 0:00:14.9]} 36.
Rg6+ {[%clk 0:01:37.7]} 36... Kh7 {[%clk 0:00:15.1]} 37. Rg2 {[%clk 0:01:36.9]}
37... Rc7 {[%clk 0:00:14.3]} 38. h4 {[%clk 0:01:33.7]} 38... Kh6 {[%clk
0:00:12.3]} 39. Kg3 {[%clk 0:01:21]} 39... Kh7 {[%clk 0:00:10.2]} 40. f3 {[%clk
0:01:19.4]} 40... Ra3 {[%clk 0:00:10]} 41. Re2 {[%clk 0:01:19.3]} 41... Re7
{[%clk 0:00:09.5]} 42. Kf2 {[%clk 0:01:19.2]} 42... Rd7 {[%clk 0:00:08.7]} 43.
d5 {[%clk 0:01:18.5]} 43... Kh6 {[%clk 0:00:08.6]} 44. e4 {[%clk 0:01:16]} 44...
Kxh5 {[%clk 0:00:07.6]} 45. Kg3 {[%clk 0:01:16.3]} 45... Kh6 {[%clk 0:00:07.4]}
46. Kf4 {[%clk 0:01:15.9]} 46... Rd3 {[%clk 0:00:05.8]} 47. Reb2 {[%clk
0:01:12.8]} 47... g5+ {[%clk 0:00:05.7]} 48. hxg5+ {[%clk 0:01:12.3]} 48...
fxg5+ {[%clk 0:00:05.9]} 49. Kg4 {[%clk 0:01:12.7]} 49... Rf7 {[%clk 0:00:02.1]}
50. Rb6+ {[%clk 0:01:08.3]} 50... Kg7 {[%clk 0:00:01.8]} 51. Rxb7 {[%clk
0:01:08.4]} 1-0

[Event "Early-Titled-Tuesday-Blitz-September-12-2023"]
[Site "Chess.com"]
[Date "2023.09.12"]
[Round "4"]
[White "Shuvalov"]
[Black "Zurability"]
[Result "0-1"]
[WhiteElo "2430"]
[BlackElo "2790"]
[TimeControl "180+1"]
[EndTime "8:38:02 PDT"]
[Termination "Zurability won by resignation"]

1. d4 {[%clk 0:03:00.9]} 1... Nf6 {[%clk 0:02:59.4]} 2. c4 {[%clk 0:03:00.7]}
2... c5 {[%clk 0:02:56.2]} 3. Nf3 {[%clk 0:02:54.9]} 3... e6 {[%clk 0:02:55.4]}
4. Nc3 {[%clk 0:02:54.1]} 4... cxd4 {[%clk 0:02:54]} 5. Nxd4 {[%clk 0:02:53.3]}
5... Bb4 {[%clk 0:02:53.4]} 6. Bd2 {[%clk 0:02:49.7]} 6... Nc6 {[%clk
0:02:53.3]} 7. Nc2 {[%clk 0:02:48.7]} 7... Bc5 {[%clk 0:02:52.6]} 8. e4 {[%clk
0:02:44.3]} 8... d5 {[%clk 0:02:53]} 9. cxd5 {[%clk 0:02:43.3]} 9... exd5 {[%clk
0:02:53.9]} 10. exd5 {[%clk 0:02:42.3]} 10... Nxd5 {[%clk 0:02:53.8]} 11. Nxd5
{[%clk 0:02:41.9]} 11... Qxd5 {[%clk 0:02:53.7]} 12. Be3 {[%clk 0:02:41.1]}
12... Qxd1+ {[%clk 0:02:49.4]} 13. Rxd1 {[%clk 0:02:42]} 13... Bxe3 {[%clk
0:02:47.3]} 14. Nxe3 {[%clk 0:02:42.9]} 14... O-O {[%clk 0:02:45.1]} 15. Be2
{[%clk 0:02:40.6]} 15... Be6 {[%clk 0:02:45.1]} 16. a3 {[%clk 0:02:38.4]} 16...
Rac8 {[%clk 0:02:43.5]} 17. O-O {[%clk 0:02:36.8]} 17... Na5 {[%clk 0:02:43.4]}
18. b4 {[%clk 0:02:18.1]} 18... Nc6 {[%clk 0:02:31.7]} 19. Bf3 {[%clk
0:02:09.9]} 19... b6 {[%clk 0:02:27]} 20. Bd5 {[%clk 0:01:59.5]} 20... Rfe8
{[%clk 0:02:15.1]} 21. Bxe6 {[%clk 0:01:57.1]} 21... Rxe6 {[%clk 0:02:16]} 22.
Rd7 {[%clk 0:01:56.4]} 22... Re7 {[%clk 0:02:15.4]} 23. Rfd1 {[%clk 0:01:55.7]}
23... Kf8 {[%clk 0:02:15.3]} 24. Kf1 {[%clk 0:01:51.1]} 24... g6 {[%clk
0:02:12.8]} 25. Ng4 {[%clk 0:01:32.5]} 25... h5 {[%clk 0:01:59.6]} 26. Nf6
{[%clk 0:01:17]} 26... Kg7 {[%clk 0:01:39]} 27. Rxe7 {[%clk 0:01:04.2]} 27...
Nxe7 {[%clk 0:01:39.9]} 28. Ne4 {[%clk 0:01:04.3]} 28... Rc7 {[%clk 0:01:34.2]}
29. Ke2 {[%clk 0:01:01.2]} 29... Nc6 {[%clk 0:01:28.1]} 30. Rd6 {[%clk
0:00:48.6]} 30... Ne5 {[%clk 0:01:26.5]} 31. Nd2 {[%clk 0:00:40.7]} 31... Rc3
{[%clk 0:01:22.9]} 32. a4 {[%clk 0:00:30.9]} 32... Ra3 {[%clk 0:01:17.2]} 33. a5
{[%clk 0:00:26.4]} 33... bxa5 {[%clk 0:01:15.7]} 34. Ra6 {[%clk 0:00:26.7]}
34... axb4 {[%clk 0:01:14.9]} 35. Rxa3 {[%clk 0:00:26.3]} 35... bxa3 {[%clk
0:01:15.1]} 36. Nb3 {[%clk 0:00:26.2]} 36... a2 {[%clk 0:01:10.9]} 37. f3 {[%clk
0:00:24.3]} 37... Kf6 {[%clk 0:01:06.6]} 38. Kd2 {[%clk 0:00:23.3]} 38... Kf5
{[%clk 0:01:07]} 39. Ke3 {[%clk 0:00:21]} 39... a5 {[%clk 0:01:03.9]} 40. Nd4+
{[%clk 0:00:19.4]} 40... Kf6 {[%clk 0:01:03.6]} 41. Nc2 {[%clk 0:00:19.6]} 41...
a4 {[%clk 0:00:59.9]} 42. Kd4 {[%clk 0:00:18.7]} 42... Kf5 {[%clk 0:00:58.9]}
43. Kc3 {[%clk 0:00:17.3]} 43... h4 {[%clk 0:00:57.4]} 44. Kb2 {[%clk
0:00:15.7]} 44... h3 {[%clk 0:00:58.1]} 45. gxh3 {[%clk 0:00:15.2]} 45... Nxf3
{[%clk 0:00:58]} 46. Kxa2 {[%clk 0:00:16.1]} 46... Nxh2 {[%clk 0:00:58.2]} 47.
Ka3 {[%clk 0:00:15.8]} 47... Kf4 {[%clk 0:00:56.7]} 48. Kxa4 {[%clk 0:00:15.8]}
48... Kg3 {[%clk 0:00:57.4]} 49. Ne3 {[%clk 0:00:15.2]} 49... f5 {[%clk
0:00:56.8]} 50. Kb4 {[%clk 0:00:16]} 50... f4 {[%clk 0:00:57]} 51. Nd5 {[%clk
0:00:15.5]} 51... f3 {[%clk 0:00:57.4]} 52. Kc3 {[%clk 0:00:15]} 52... f2 {[%clk
0:00:57.8]} 53. Ne3 {[%clk 0:00:15.4]} 53... Kxh3 {[%clk 0:00:55.2]} 54. Kd2
{[%clk 0:00:15.2]} 54... f1=Q {[%clk 0:00:52.2]} 55. Nxf1 {[%clk 0:00:15.2]}
55... Nxf1+ {[%clk 0:00:53.1]} 0-1